[Event "*** SCC Grand Prix: Titled Tuesday Blitz"]
[Site "Chess.com"]
[Date "2020.07.07"]
[Round "7"]
[White "Sashadav97"]
[Black "Budisavljevic"]
[Result "0-1"]
[WhiteElo "2526"]
[BlackElo "2416"]
[TimeControl "180+1"]
[EndTime "11:20:12 PDT"]
[Termination "Budisavljevic won by resignation"]

1. d4 {[%clk 0:03:00.9]} 1... Nf6 {[%clk 0:02:58.3]} 2. c4 {[%clk 0:02:59.7]}
2... a6 {[%clk 0:02:58.6]} 3. Nc3 {[%clk 0:02:56.1]} 3... c5 {[%clk 0:02:58.6]}
4. d5 {[%clk 0:02:56.1]} 4... b5 {[%clk 0:02:58.5]} 5. cxb5 {[%clk 0:02:56.4]}
5... axb5 {[%clk 0:02:59.4]} 6. e4 {[%clk 0:02:56.8]} 6... b4 {[%clk 0:02:59.3]}
7. Nb5 {[%clk 0:02:56.3]} 7... d6 {[%clk 0:02:59.9]} 8. a4 {[%clk 0:02:49.3]}
8... g6 {[%clk 0:02:51.9]} 9. Bd3 {[%clk 0:02:47.7]} 9... Bg7 {[%clk 0:02:51.4]}
10. Nf3 {[%clk 0:02:48.1]} 10... Bg4 {[%clk 0:02:45.1]} 11. O-O {[%clk 0:02:47]}
11... Nbd7 {[%clk 0:02:40.7]} 12. Be2 {[%clk 0:02:42.6]} 12... Bxf3 {[%clk
0:02:38]} 13. Bxf3 {[%clk 0:02:43.5]} 13... O-O {[%clk 0:02:37.8]} 14. Be2
{[%clk 0:02:34.2]} 14... Nxe4 {[%clk 0:02:35.6]} 15. Bf3 {[%clk 0:02:28.7]}
15... Nef6 {[%clk 0:02:34]} 16. Bf4 {[%clk 0:02:27.3]} 16... Ne8 {[%clk
0:02:33.4]} 17. Qc2 {[%clk 0:02:23.8]} 17... Ne5 {[%clk 0:02:21.3]} 18. Be2
{[%clk 0:02:17.9]} 18... Qb6 {[%clk 0:02:17.9]} 19. Bxe5 {[%clk 0:02:15.5]}
19... Bxe5 {[%clk 0:02:16.1]} 20. Bc4 {[%clk 0:02:15.4]} 20... Bg7 {[%clk
0:02:12.1]} 21. Rae1 {[%clk 0:02:14.8]} 21... Bf6 {[%clk 0:02:11.8]} 22. b3
{[%clk 0:02:14.9]} 22... Ng7 {[%clk 0:02:11.6]} 23. Bd3 {[%clk 0:02:10]} 23...
e5 {[%clk 0:01:56.4]} 24. dxe6 {[%clk 0:02:05.5]} 24... fxe6 {[%clk 0:01:51.9]}
25. Kh1 {[%clk 0:01:51.6]} 25... d5 {[%clk 0:01:46.9]} 26. f4 {[%clk 0:01:38.2]}
26... Rae8 {[%clk 0:01:36.8]} 27. Qf2 {[%clk 0:01:38]} 27... Nf5 {[%clk
0:01:16]} 28. Qf3 {[%clk 0:01:28.5]} 28... Nd4 {[%clk 0:00:52.7]} 29. Nxd4
{[%clk 0:01:26.3]} 29... Bxd4 {[%clk 0:00:53.6]} 30. Qg4 {[%clk 0:01:20.8]}
30... Kg7 {[%clk 0:00:52.1]} 31. h4 {[%clk 0:01:17.1]} 31... Qd6 {[%clk
0:00:27.7]} 32. h5 {[%clk 0:01:14.7]} 32... Rf6 {[%clk 0:00:18.4]} 33. g3 {[%clk
0:01:11.3]} 33... e5 {[%clk 0:00:15.4]} 34. fxe5 {[%clk 0:00:54.3]} 34... Rxe5
{[%clk 0:00:15.4]} 35. hxg6 {[%clk 0:00:54.7]} 35... hxg6 {[%clk 0:00:09.3]} 36.
Kg2 {[%clk 0:00:52]} 36... Rxe1 {[%clk 0:00:08.3]} 37. Rxe1 {[%clk 0:00:51.8]}
37... Rf2+ {[%clk 0:00:07.1]} 38. Kh3 {[%clk 0:00:44.2]} 38... Rf6 {[%clk
0:00:01.9]} 39. Qc8 {[%clk 0:00:39.1]} 39... Qf8 {[%clk 0:00:02.3]} 40. Qd7+
{[%clk 0:00:34]} 40... Rf7 {[%clk 0:00:02.6]} 41. Qg4 {[%clk 0:00:19.5]} 41...
Qh8+ {[%clk 0:00:02.7]} 42. Qh4 {[%clk 0:00:19.9]} 42... Qxh4+ {[%clk
0:00:03.1]} 43. Kxh4 {[%clk 0:00:20.4]} 43... Rf3 {[%clk 0:00:03.4]} 44. Bc2
{[%clk 0:00:19.3]} 44... Rc3 {[%clk 0:00:03.7]} 45. Re2 {[%clk 0:00:19.5]} 45...
c4 {[%clk 0:00:03.3]} 46. Rd2 {[%clk 0:00:15.8]} 46... cxb3 {[%clk 0:00:02.9]}
47. Bxb3 {[%clk 0:00:15.3]} 47... Bf6+ {[%clk 0:00:03.4]} 48. Kg4 {[%clk
0:00:15]} 48... Rxb3 {[%clk 0:00:04.3]} 49. Rxd5 {[%clk 0:00:15.4]} 49... Ra3
{[%clk 0:00:04.9]} 50. a5 {[%clk 0:00:15.7]} 50... b3 {[%clk 0:00:05.2]} 51. Rb5
{[%clk 0:00:15.9]} 51... b2 {[%clk 0:00:05.6]} 52. a6 {[%clk 0:00:15.3]} 52...
Ra4+ {[%clk 0:00:04.9]} 53. Kh3 {[%clk 0:00:15.2]} 53... Rxa6 {[%clk 0:00:05.6]}
54. Rb7+ {[%clk 0:00:16.1]} 54... Kh6 {[%clk 0:00:05]} 55. g4 {[%clk 0:00:16.7]}
55... Ra3+ {[%clk 0:00:03.9]} 56. Kg2 {[%clk 0:00:16.7]} 56... Ra1 {[%clk
0:00:04.8]} 57. g5+ {[%clk 0:00:14.5]} 57... Kxg5 {[%clk 0:00:04.5]} 0-1

[Event "*** SCC Grand Prix: Titled Tuesday Blitz"]
[Site "Chess.com"]
[Date "2020.07.07"]
[Round "7"]
[White "fish7728"]
[Black "Bastiandash"]
[Result "0-1"]
[WhiteElo "2179"]
[BlackElo "2327"]
[TimeControl "180+1"]
[EndTime "11:20:12 PDT"]
[Termination "Bastiandash won by resignation"]

1. d4 {[%clk 0:03:00.9]} 1... Nf6 {[%clk 0:02:59.3]} 2. c4 {[%clk 0:03:01.2]}
2... e6 {[%clk 0:02:58.1]} 3. Nc3 {[%clk 0:03:01]} 3... Bb4 {[%clk 0:02:58.5]}
4. f3 {[%clk 0:03:01]} 4... d5 {[%clk 0:02:53.6]} 5. a3 {[%clk 0:03:00.8]} 5...
Bxc3+ {[%clk 0:02:43]} 6. bxc3 {[%clk 0:03:01.4]} 6... O-O {[%clk 0:02:40.7]} 7.
e3 {[%clk 0:03:01.1]} 7... b6 {[%clk 0:02:38.9]} 8. Bd3 {[%clk 0:03:00.6]} 8...
Ba6 {[%clk 0:02:32.8]} 9. cxd5 {[%clk 0:02:59.7]} 9... Bxd3 {[%clk 0:02:31.6]}
10. Qxd3 {[%clk 0:02:59.2]} 10... exd5 {[%clk 0:02:31.4]} 11. Ne2 {[%clk
0:02:59.4]} 11... Re8 {[%clk 0:02:30.6]} 12. O-O {[%clk 0:02:58.7]} 12... Qe7
{[%clk 0:02:21.1]} 13. Ng3 {[%clk 0:02:53.4]} 13... Nbd7 {[%clk 0:02:20.9]} 14.
Bd2 {[%clk 0:02:41.5]} 14... a6 {[%clk 0:02:20]} 15. Rae1 {[%clk 0:02:40.5]}
15... Qxa3 {[%clk 0:02:17.6]} 16. e4 {[%clk 0:02:40.4]} 16... dxe4 {[%clk
0:02:09.1]} 17. fxe4 {[%clk 0:02:40.3]} 17... c5 {[%clk 0:02:09.4]} 18. Ra1
{[%clk 0:02:28.1]} 18... Qb3 {[%clk 0:02:01]} 19. e5 {[%clk 0:02:09.4]} 19...
Nd5 {[%clk 0:01:29.3]} 20. Rfb1 {[%clk 0:01:49.1]} 20... Nb4 {[%clk 0:00:54]}
21. Qf5 {[%clk 0:01:48.5]} 21... Qd5 {[%clk 0:00:41.7]} 22. cxb4 {[%clk
0:01:47.8]} 22... Qxd4+ {[%clk 0:00:39.7]} 23. Qf2 {[%clk 0:01:46]} 23... Qxe5
{[%clk 0:00:36.3]} 24. bxc5 {[%clk 0:01:42.1]} 24... Nxc5 {[%clk 0:00:37.2]} 25.
Re1 {[%clk 0:01:37.4]} 25... Qd6 {[%clk 0:00:30.3]} 26. Bb4 {[%clk 0:01:29.7]}
26... a5 {[%clk 0:00:27.6]} 27. Bxc5 {[%clk 0:01:28.1]} 27... bxc5 {[%clk
0:00:28.5]} 28. Rxe8+ {[%clk 0:01:21.3]} 28... Rxe8 {[%clk 0:00:29.4]} 29. Rxa5
{[%clk 0:01:18.8]} 29... c4 {[%clk 0:00:22.4]} 30. Ra1 {[%clk 0:01:14.7]} 30...
g6 {[%clk 0:00:17]} 31. Rc1 {[%clk 0:01:07.6]} 31... Qd3 {[%clk 0:00:12.9]} 32.
h3 {[%clk 0:00:53.1]} 32... h5 {[%clk 0:00:11]} 33. Nf1 {[%clk 0:00:48.1]} 33...
Re2 {[%clk 0:00:09.8]} 34. Qc5 {[%clk 0:00:38.1]} 34... Qe4 {[%clk 0:00:03.9]}
35. Qg5 {[%clk 0:00:26.5]} 35... h4 {[%clk 0:00:03.2]} 36. Nh2 {[%clk
0:00:12.9]} 36... Re1+ {[%clk 0:00:02]} 37. Rxe1 {[%clk 0:00:11.4]} 37... Qxe1+
{[%clk 0:00:02.9]} 38. Nf1 {[%clk 0:00:11.7]} 38... c3 {[%clk 0:00:03.6]} 39.
Qd8+ {[%clk 0:00:10.6]} 39... Kg7 {[%clk 0:00:03]} 40. Qd3 {[%clk 0:00:11.4]}
40... Kh7 {[%clk 0:00:01.8]} 41. Qc2 {[%clk 0:00:11.2]} 41... Kg7 {[%clk
0:00:01.8]} 42. Qf2 {[%clk 0:00:09.9]} 42... Qd1 {[%clk 0:00:02.1]} 43. Qe3
{[%clk 0:00:07.9]} 43... c2 {[%clk 0:00:02.1]} 44. Qe5+ {[%clk 0:00:08]} 44...
Kh7 {[%clk 0:00:02.1]} 45. Qe7 {[%clk 0:00:07.4]} 45... Kg8 {[%clk 0:00:01.8]}
46. Qe8+ {[%clk 0:00:07.4]} 46... Kg7 {[%clk 0:00:02.3]} 47. Qe5+ {[%clk
0:00:07.7]} 47... Kf8 {[%clk 0:00:02.5]} 48. Qd6+ {[%clk 0:00:07.7]} 48... Qxd6
{[%clk 0:00:01.2]} 49. Ne3 {[%clk 0:00:06.9]} 49... c1=Q+ {[%clk 0:00:02.1]} 50.
Nd1 {[%clk 0:00:07.3]} 50... Qcd2 {[%clk 0:00:02.6]} 51. Nf2 {[%clk 0:00:07.1]}
51... Qd1+ {[%clk 0:00:03.5]} 52. Nxd1 {[%clk 0:00:06.6]} 52... Qxd1+ {[%clk
0:00:04.4]} 53. Kh2 {[%clk 0:00:07.5]} 53... Qc2 {[%clk 0:00:05.3]} 54. Kg1
{[%clk 0:00:07.2]} 54... Ke7 {[%clk 0:00:06.2]} 55. Kh2 {[%clk 0:00:07.7]} 55...
Kf6 {[%clk 0:00:07.1]} 0-1

[Event "*** SCC Grand Prix: Titled Tuesday Blitz"]
[Site "Chess.com"]
[Date "2020.07.07"]
[Round "7"]
[White "dpopadic"]
[Black "CzechmVIII"]
[Result "1-0"]
[WhiteElo "2387"]
[BlackElo "2182"]
[TimeControl "180+1"]
[EndTime "11:20:13 PDT"]
[Termination "dpopadic won on time"]

1. e4 {[%clk 0:03:00.9]} 1... c5 {[%clk 0:02:59.8]} 2. Nc3 {[%clk 0:03:00]} 2...
Nc6 {[%clk 0:02:59.6]} 3. f4 {[%clk 0:02:59.8]} 3... g6 {[%clk 0:02:59.8]} 4.
Nf3 {[%clk 0:02:59.2]} 4... Bg7 {[%clk 0:03:00.1]} 5. Bc4 {[%clk 0:02:59.2]}
5... e6 {[%clk 0:03:00]} 6. f5 {[%clk 0:02:59.2]} 6... Nge7 {[%clk 0:02:57.8]}
7. fxe6 {[%clk 0:02:59.2]} 7... fxe6 {[%clk 0:02:58.5]} 8. d3 {[%clk 0:02:59.3]}
8... d5 {[%clk 0:02:53.1]} 9. Bb3 {[%clk 0:02:59.1]} 9... h6 {[%clk 0:02:45.7]}
10. O-O {[%clk 0:02:57.1]} 10... O-O {[%clk 0:02:45.7]} 11. Qe1 {[%clk
0:02:54.5]} 11... Nd4 {[%clk 0:02:44.2]} 12. Nxd4 {[%clk 0:02:47.3]} 12... Rxf1+
{[%clk 0:02:43.4]} 13. Qxf1 {[%clk 0:02:46.5]} 13... cxd4 {[%clk 0:02:44.1]} 14.
Ne2 {[%clk 0:02:43.3]} 14... dxe4 {[%clk 0:02:42.7]} 15. dxe4 {[%clk 0:02:43.4]}
15... d3 {[%clk 0:02:40.6]} 16. cxd3 {[%clk 0:02:34.4]} 16... Qxd3 {[%clk
0:02:40.4]} 17. Nc3 {[%clk 0:02:32.4]} 17... Bd4+ {[%clk 0:02:19.5]} 18. Be3
{[%clk 0:02:31.5]} 18... Bxe3+ {[%clk 0:02:17.9]} 19. Kh1 {[%clk 0:02:31.5]}
19... Qxf1+ {[%clk 0:02:15.8]} 20. Rxf1 {[%clk 0:02:31.5]} 20... Bd7 {[%clk
0:02:13.2]} 21. Rd1 {[%clk 0:02:25.3]} 21... Bc6 {[%clk 0:01:53.9]} 22. Bxe6+
{[%clk 0:02:24.1]} 22... Kg7 {[%clk 0:01:54.2]} 23. h3 {[%clk 0:02:20.4]} 23...
Rf8 {[%clk 0:01:46.4]} 24. b4 {[%clk 0:02:08.1]} 24... a6 {[%clk 0:01:21.6]} 25.
a4 {[%clk 0:02:06.8]} 25... Bf4 {[%clk 0:01:15.5]} 26. b5 {[%clk 0:02:00.5]}
26... axb5 {[%clk 0:01:15.4]} 27. axb5 {[%clk 0:02:00.1]} 27... Be8 {[%clk
0:01:13.3]} 28. Nd5 {[%clk 0:01:21.1]} 28... Nxd5 {[%clk 0:01:12.1]} 29. Bxd5
{[%clk 0:01:21]} 29... Bxb5 {[%clk 0:01:02.4]} 30. Bxb7 {[%clk 0:01:20.5]} 30...
Bg3 {[%clk 0:00:54]} 31. Kg1 {[%clk 0:01:15.4]} 31... Be5 {[%clk 0:00:39.9]} 32.
Bd5 {[%clk 0:01:10]} 32... h5 {[%clk 0:00:38.3]} 33. Rb1 {[%clk 0:01:08.4]}
33... Bd3 {[%clk 0:00:34.7]} 34. Rd1 {[%clk 0:01:07.4]} 34... Bd4+ {[%clk
0:00:28]} 35. Kh2 {[%clk 0:01:03.1]} 35... Be5+ {[%clk 0:00:28.2]} 36. Kg1
{[%clk 0:01:03.1]} 36... Ba6 {[%clk 0:00:27.6]} 37. Rb1 {[%clk 0:00:55]} 37...
h4 {[%clk 0:00:22.7]} 38. Rc1 {[%clk 0:00:52.5]} 38... Kh6 {[%clk 0:00:21.3]}
39. Rb1 {[%clk 0:00:50.2]} 39... Bg3 {[%clk 0:00:20.6]} 40. Ra1 {[%clk
0:00:48.6]} 40... Bd3 {[%clk 0:00:18.8]} 41. Rd1 {[%clk 0:00:48.3]} 41... Bb5
{[%clk 0:00:17.6]} 42. Rb1 {[%clk 0:00:47.7]} 42... Bd7 {[%clk 0:00:16.4]} 43.
Rd1 {[%clk 0:00:46.2]} 43... Bb5 {[%clk 0:00:16.2]} 44. Rb1 {[%clk 0:00:45.6]}
44... Rc8 {[%clk 0:00:14.8]} 45. Rd1 {[%clk 0:00:36.7]} 45... Bd3 {[%clk
0:00:13.8]} 46. e5 {[%clk 0:00:25.1]} 46... Rb8 {[%clk 0:00:11]} 47. e6 {[%clk
0:00:22.8]} 47... Bd6 {[%clk 0:00:05.6]} 48. Rxd3 {[%clk 0:00:20.4]} 48... Re8
{[%clk 0:00:05.5]} 49. Kf2 {[%clk 0:00:19.4]} 49... Be7 {[%clk 0:00:05.8]} 50.
Kf3 {[%clk 0:00:19.1]} 50... Kg7 {[%clk 0:00:06.3]} 51. Bc4 {[%clk 0:00:17.8]}
51... g5 {[%clk 0:00:06.4]} 52. Rd7 {[%clk 0:00:17.2]} 52... Kf6 {[%clk
0:00:06.3]} 53. Kg4 {[%clk 0:00:16.4]} 53... Bb4 {[%clk 0:00:04.1]} 54. Rf7+
{[%clk 0:00:15.1]} 54... Ke5 {[%clk 0:00:01.8]} 55. Rf5+ {[%clk 0:00:14.5]}
55... Kd6 {[%clk 0:00:01.5]} 56. Rxg5 {[%clk 0:00:13.7]} 56... Be1 {[%clk
0:00:02.1]} 57. Rd5+ {[%clk 0:00:12.4]} 57... Kc6 {[%clk 0:00:01.4]} 58. Re5
{[%clk 0:00:11.6]} 1-0

[Event "*** SCC Grand Prix: Titled Tuesday Blitz"]
[Site "Chess.com"]
[Date "2020.07.07"]
[Round "7"]
[White "SergeyKarjakin"]
[Black "hanzo_hasashi1"]
[Result "0-1"]
[WhiteElo "2969"]
[BlackElo "2894"]
[TimeControl "180+1"]
[EndTime "11:20:14 PDT"]
[Termination "hanzo_hasashi1 won by resignation"]

1. e4 {[%clk 0:03:00.9]} 1... e5 {[%clk 0:02:59.9]} 2. Nf3 {[%clk 0:03:00.1]}
2... Nc6 {[%clk 0:03:00.4]} 3. Bc4 {[%clk 0:02:59.9]} 3... Bc5 {[%clk
0:03:00.1]} 4. c3 {[%clk 0:03:00.5]} 4... Nf6 {[%clk 0:02:59.8]} 5. d3 {[%clk
0:03:01.1]} 5... d6 {[%clk 0:02:59.4]} 6. O-O {[%clk 0:03:01.5]} 6... a6 {[%clk
0:02:54.7]} 7. a4 {[%clk 0:03:00.3]} 7... Ba7 {[%clk 0:02:54]} 8. Nbd2 {[%clk
0:02:57.7]} 8... O-O {[%clk 0:02:52.6]} 9. h3 {[%clk 0:02:53.8]} 9... Bd7 {[%clk
0:02:47.8]} 10. Re1 {[%clk 0:02:51.3]} 10... b5 {[%clk 0:02:42]} 11. Bb3 {[%clk
0:02:30.8]} 11... b4 {[%clk 0:02:41.2]} 12. Nf1 {[%clk 0:02:21]} 12... Rb8
{[%clk 0:02:37.6]} 13. Ng3 {[%clk 0:02:13.6]} 13... bxc3 {[%clk 0:02:33.3]} 14.
bxc3 {[%clk 0:02:13.9]} 14... Na5 {[%clk 0:02:31.6]} 15. Bc2 {[%clk 0:02:07.6]}
15... c5 {[%clk 0:02:31.4]} 16. Bg5 {[%clk 0:01:58.6]} 16... h6 {[%clk
0:02:27.7]} 17. Bh4 {[%clk 0:01:58.6]} 17... Be6 {[%clk 0:02:21.5]} 18. d4
{[%clk 0:01:33.5]} 18... cxd4 {[%clk 0:02:13.5]} 19. cxd4 {[%clk 0:01:34.4]}
19... Nc4 {[%clk 0:02:13.3]} 20. d5 {[%clk 0:01:07]} 20... Bd7 {[%clk
0:02:09.6]} 21. Qe2 {[%clk 0:01:05.5]} 21... Rc8 {[%clk 0:02:01.3]} 22. Bd3
{[%clk 0:01:03.2]} 22... Na5 {[%clk 0:01:59.6]} 23. Bxa6 {[%clk 0:01:01.4]}
23... Rc3 {[%clk 0:01:54.9]} 24. Rec1 {[%clk 0:00:44.4]} 24... Qc7 {[%clk
0:01:50.2]} 25. Qe1 {[%clk 0:00:41.9]} 25... Bxf2+ {[%clk 0:01:44.9]} 26. Kxf2
{[%clk 0:00:30.8]} 26... Qa7+ {[%clk 0:01:44.5]} 27. Kf1 {[%clk 0:00:28.4]}
27... Rxf3+ {[%clk 0:01:39.8]} 28. gxf3 {[%clk 0:00:27]} 28... Bxh3+ {[%clk
0:01:39]} 29. Ke2 {[%clk 0:00:26.7]} 29... Qxa6+ {[%clk 0:01:38]} 30. Kf2 {[%clk
0:00:26.7]} 30... g5 {[%clk 0:01:35.2]} 31. Bxg5 {[%clk 0:00:06.4]} 31... hxg5
{[%clk 0:01:34.3]} 32. Qe3 {[%clk 0:00:07]} 32... Nh7 {[%clk 0:01:27]} 33. Rc7
{[%clk 0:00:05.6]} 33... Rb8 {[%clk 0:01:22.1]} 34. Rac1 {[%clk 0:00:04.7]}
34... Rb2+ {[%clk 0:01:19.2]} 35. R1c2 {[%clk 0:00:04.5]} 35... Rxc2+ {[%clk
0:01:16.8]} 36. Rxc2 {[%clk 0:00:05.4]} 36... Nc4 {[%clk 0:01:15.9]} 37. Qc3
{[%clk 0:00:03.9]} 37... Qa7+ {[%clk 0:01:12.3]} 38. Ke2 {[%clk 0:00:04.1]}
38... Qg1 {[%clk 0:01:07.9]} 39. Qxc4 {[%clk 0:00:03.9]} 39... Qxg3 {[%clk
0:01:05.2]} 40. a5 {[%clk 0:00:03.6]} 40... Nf6 {[%clk 0:01:01]} 41. a6 {[%clk
0:00:03.2]} 41... g4 {[%clk 0:00:58.8]} 42. fxg4 {[%clk 0:00:02.9]} 42... Bxg4+
{[%clk 0:00:56.5]} 43. Kd2 {[%clk 0:00:03.3]} 43... Qg1 {[%clk 0:00:48.9]} 44.
Kc3 {[%clk 0:00:03.7]} 44... Bf3 {[%clk 0:00:43.8]} 45. Kb2 {[%clk 0:00:03.6]}
45... Bxe4 {[%clk 0:00:40.1]} 46. Rc1 {[%clk 0:00:03.6]} 46... Qf2+ {[%clk
0:00:38]} 47. Ka3 {[%clk 0:00:03.9]} 47... Bxd5 {[%clk 0:00:31.2]} 48. Qc8+
{[%clk 0:00:03.6]} 48... Kg7 {[%clk 0:00:31.1]} 49. Qc2 {[%clk 0:00:04.2]} 49...
Qb6 {[%clk 0:00:29.3]} 50. Qd3 {[%clk 0:00:03.4]} 50... Qa5+ {[%clk 0:00:25]}
51. Kb2 {[%clk 0:00:03.6]} 51... Qa2+ {[%clk 0:00:21.9]} 52. Kc3 {[%clk
0:00:03.9]} 52... Qa3+ {[%clk 0:00:17.6]} 53. Kd2 {[%clk 0:00:03.9]} 53... Ne4+
{[%clk 0:00:17.9]} 54. Kc2 {[%clk 0:00:01.8]} 54... Qa2+ {[%clk 0:00:16.4]} 0-1

[Event "*** SCC Grand Prix: Titled Tuesday Blitz"]
[Site "Chess.com"]
[Date "2020.07.07"]
[Round "7"]
[White "ahachess"]
[Black "Ermito2020"]
[Result "0-1"]
[WhiteElo "2275"]
[BlackElo "2450"]
[TimeControl "180+1"]
[EndTime "11:20:16 PDT"]
[Termination "Ermito2020 won by resignation"]

1. d4 {[%clk 0:03:00.7]} 1... d5 {[%clk 0:02:58.9]} 2. c4 {[%clk 0:03:00.5]}
2... e6 {[%clk 0:02:58.9]} 3. Nf3 {[%clk 0:02:59.4]} 3... Nf6 {[%clk 0:02:57.2]}
4. g3 {[%clk 0:02:59.4]} 4... c6 {[%clk 0:02:57]} 5. Qc2 {[%clk 0:02:59]} 5...
Be7 {[%clk 0:02:54.3]} 6. Bg2 {[%clk 0:02:58.9]} 6... O-O {[%clk 0:02:54.3]} 7.
O-O {[%clk 0:02:59.6]} 7... Nbd7 {[%clk 0:02:54.5]} 8. Nc3 {[%clk 0:02:51.5]}
8... dxc4 {[%clk 0:02:50.6]} 9. Nd2 {[%clk 0:02:47.8]} 9... Nb6 {[%clk 0:02:46]}
10. e3 {[%clk 0:02:47.4]} 10... Nfd5 {[%clk 0:02:33.9]} 11. a3 {[%clk
0:02:42.6]} 11... Rb8 {[%clk 0:02:20.2]} 12. Ne2 {[%clk 0:02:36.8]} 12... Bd7
{[%clk 0:02:07.8]} 13. Nxc4 {[%clk 0:02:35.3]} 13... Nxc4 {[%clk 0:02:07.7]} 14.
Qxc4 {[%clk 0:02:36.2]} 14... Rc8 {[%clk 0:02:02.4]} 15. e4 {[%clk 0:02:32.2]}
15... Nb6 {[%clk 0:02:02]} 16. Qc2 {[%clk 0:02:26]} 16... c5 {[%clk 0:02:02]}
17. d5 {[%clk 0:02:25.8]} 17... exd5 {[%clk 0:02:00.5]} 18. exd5 {[%clk
0:02:26.7]} 18... Bd6 {[%clk 0:02:00]} 19. Be4 {[%clk 0:02:16.5]} 19... g6
{[%clk 0:01:57.6]} 20. Bf4 {[%clk 0:02:09.6]} 20... Qc7 {[%clk 0:01:43.4]} 21.
Bh6 {[%clk 0:02:08.3]} 21... Rfe8 {[%clk 0:01:43.1]} 22. Rfe1 {[%clk 0:02:08.5]}
22... Be5 {[%clk 0:01:28]} 23. Nc3 {[%clk 0:02:08.2]} 23... Qd6 {[%clk
0:01:23.1]} 24. Rad1 {[%clk 0:02:04.9]} 24... Bd4 {[%clk 0:01:22.9]} 25. Bg2
{[%clk 0:01:56]} 25... Rxe1+ {[%clk 0:01:14.7]} 26. Rxe1 {[%clk 0:01:55.6]}
26... Re8 {[%clk 0:01:14.4]} 27. Rxe8+ {[%clk 0:01:53.3]} 27... Bxe8 {[%clk
0:01:15.3]} 28. Bf4 {[%clk 0:01:47.7]} 28... Qe7 {[%clk 0:01:09.4]} 29. Qe4
{[%clk 0:01:22.9]} 29... Qxe4 {[%clk 0:01:07.5]} 30. Bxe4 {[%clk 0:01:22.9]}
30... Nc4 {[%clk 0:01:06.2]} 31. Bc1 {[%clk 0:01:20.9]} 31... Nxa3 {[%clk
0:00:59.5]} 32. Ne2 {[%clk 0:01:16.8]} 32... Nb5 {[%clk 0:00:58.1]} 33. Nxd4
{[%clk 0:01:16]} 33... Nxd4 {[%clk 0:00:58.3]} 34. d6 {[%clk 0:01:10.3]} 34...
b6 {[%clk 0:00:58.3]} 35. Be3 {[%clk 0:01:09.8]} 35... Bd7 {[%clk 0:00:48.4]}
36. Bd5 {[%clk 0:01:06.4]} 36... Kg7 {[%clk 0:00:46.8]} 37. f4 {[%clk
0:01:05.8]} 37... Nc2 {[%clk 0:00:44.1]} 38. Bf2 {[%clk 0:01:04.9]} 38... Nb4
{[%clk 0:00:43]} 39. Bb7 {[%clk 0:00:53.5]} 39... Kf6 {[%clk 0:00:41.4]} 40. Be1
{[%clk 0:00:34.7]} 40... Ke6 {[%clk 0:00:39.8]} 41. Bc3 {[%clk 0:00:27.8]} 41...
Kxd6 {[%clk 0:00:39]} 42. Be5+ {[%clk 0:00:27.8]} 42... Ke7 {[%clk 0:00:38.8]}
43. Bb8 {[%clk 0:00:27.4]} 43... Bc6 {[%clk 0:00:38.7]} 44. Bc8 {[%clk
0:00:26.9]} 44... a5 {[%clk 0:00:34.4]} 45. Ba7 {[%clk 0:00:24.8]} 45... Nd5
{[%clk 0:00:34.3]} 46. Ba6 {[%clk 0:00:21.9]} 46... Kd6 {[%clk 0:00:32.8]} 47.
Bc4 {[%clk 0:00:22]} 47... b5 {[%clk 0:00:32.7]} 48. Bxd5 {[%clk 0:00:19.8]}
48... Kxd5 {[%clk 0:00:32.2]} 49. Kf2 {[%clk 0:00:20.3]} 49... a4 {[%clk
0:00:32]} 50. Ke3 {[%clk 0:00:20.1]} 50... Kc4 {[%clk 0:00:31.6]} 51. Kd2 {[%clk
0:00:19.9]} 51... Kb3 {[%clk 0:00:29.4]} 52. Kc1 {[%clk 0:00:19.9]} 52... c4
{[%clk 0:00:28.3]} 53. Bc5 {[%clk 0:00:18.4]} 53... b4 {[%clk 0:00:28.3]} 54.
Kd2 {[%clk 0:00:18.2]} 54... a3 {[%clk 0:00:26.3]} 55. bxa3 {[%clk 0:00:17.5]}
55... Kxa3 {[%clk 0:00:26.7]} 56. Kc2 {[%clk 0:00:17]} 56... Be4+ {[%clk
0:00:26.9]} 57. Kc1 {[%clk 0:00:16.6]} 57... c3 {[%clk 0:00:25.8]} 58. Bd4
{[%clk 0:00:14.7]} 58... Kb3 {[%clk 0:00:25.2]} 59. Be5 {[%clk 0:00:12.1]} 59...
Kc4 {[%clk 0:00:25.1]} 0-1